fUST/lending_fUST_20260101
["ID","MTS","AMOUNT","RATE_DAILY","PERIOD"]
[400218923,1767202248567,-500.0,0.0003644,30]
[400218924,1767202248578,-500.0,0.0003644,30]
[400218925,1767202248588,-500.0,0.0003644,30]
[400218926,1767202248598,-500.0,0.0003644,30]
[400218927,1767202248608,-500.0,0.0003644,30]
[400218928,1767202248618,-500.0,0.0003644,30]
[400218929,1767202248627,-500.0,0.0003644,30]
[400218930,1767202248636,-500.0,0.0003644,30]
[400218931,1767202248645,-500.0,0.0003644,30]
[400218932,1767202248655,-603.09510429,0.0003644,30]
[400218933,1767202248665,-500.0,0.0003644,30]
[400218934,1767202248675,-500.0,0.0003644,30]
[400218935,1767202248685,-500.0,0.0003644,30]
[400218936,1767202248694,-500.0,0.0003644,30]
[400218937,1767202248706,-726.0,0.00036442,11]
[400218938,1767202248716,-1545.6,0.00036467,60]
[400218939,1767202248726,-155.15468496,0.000365,120]
[400218940,1767202248735,-776.0,0.000365,2]
[400218941,1767202248745,-200.0,0.00036507,120]
[400218942,1767202248754,-1545.6,0.00036567,60]
[400218943,1767202248763,-169.32246815,0.00036575,30]
[400218944,1767202248772,-726.0,0.0003659,11]
[400218945,1767202248781,-600.0,0.00036654,2]
[400218946,1767202248791,-290259.83352013,0.00036667,5]
[400218947,1767202248906,-2077.549415,0.000285,7]
[400218948,1767202248915,-27256.41889589,0.00036667,5]
[400218949,1767202248926,-27651.82305953,0.00036667,5]
[400218950,1767202250448,-1883.72717108,0.00036667,5]
[400218951,1767202250502,-185.83881578,0.00036667,5]
[400218952,1767202250514,-2012.70208524,0.00036667,5]
[400218953,1767202250527,-500.0,0.00036667,5]
[400218954,1767202250540,-1251.64436597,0.00036667,5]
[400218955,1767202250551,-2152.23329974,0.00036667,5]
[400218956,1767202250563,-6266.55930988,0.00036667,5]
[400218957,1767202250575,-4082.11870766,0.00036667,5]
[400218958,1767202250586,-654.9951654,0.00036667,5]
[400218959,1767202250721,-3212.61,0.00026027,2]
[400218960,1767202250731,-3212.61,0.00026301,2]
[400218961,1767202250745,-3212.61,0.00026575,2]
[400218962,1767202250758,-41.6718129,0.00026849,2]
[400218963,1767202251279,-314.95497888,0.00026849,2]
[400218964,1767202251508,-374.9427212,0.0002489,10]
[400218965,1767202251564,-3568.61134244,0.00022739,2]
[400219006,1767202584497,200.0,0.00010041,6]
[400219007,1767202734207,5000.0,0.00010954,2]
[400219189,1767203217727,10000.0,0.0001034,2]
[400219190,1767203252114,-999.0,0.00010959,2]
[400219191,1767203252135,-303.85586683,0.00011031,2]
[400219192,1767203252155,-577.0,0.00011199,2]
[400219193,1767203252175,-300.0,0.00011478,2]
[400219194,1767203252194,-300.0,0.00011479,2]
[400219195,1767203252214,-300.0,0.00011479,2]
[400219196,1767203252242,-300.0,0.00011479,2]
[400219197,1767203252266,-50000.0,0.00011479,2]
[400219198,1767203252289,-500.0,0.0001148,2]
[400219199,1767203252312,-500.0,0.0001148,2]
[400219200,1767203252334,-500.0,0.0001148,2]
[400219201,1767203252356,-500.0,0.0001148,2]
[400219202,1767203252377,-500.0,0.0001148,2]
[400219203,1767203252399,-500.0,0.0001148,2]
[400219204,1767203252422,-495.26947492,0.0001148,2]
[400219205,1767203252443,-201.171,0.00011481,2]
[400219206,1767203252466,-500.0,0.00011484,2]
[400219207,1767203252487,-500.0,0.00011484,2]
[400219208,1767203252508,-169.06671593,0.00011484,2]
[400219209,1767203252531,-500.0,0.00011484,2]
[400219210,1767203252552,-398.32280838,0.00011484,2]
[400219211,1767203252574,-500.0,0.00011484,2]
[400219212,1767203252596,-500.0,0.00011484,2]
[400219213,1767203252618,-500.0,0.00011484,2]
[400219214,1767203252639,-500.0,0.00011484,2]
[400219215,1767203252660,-500.0,0.00011484,2]
[400219216,1767203252682,-500.0,0.00011484,2]
[400219217,1767203252702,-500.0,0.00011484,2]
[400219218,1767203252723,-500.0,0.00011484,2]
[400219219,1767203252745,-500.0,0.00011484,2]
[400219220,1767203252766,-500.0,0.00011484,2]
[400219221,1767203252792,-500.0,0.00011484,2]
[400219222,1767203252814,-500.0,0.00011484,2]
[400219223,1767203252839,-500.0,0.00011484,2]
[400219224,1767203252860,-500.0,0.00011484,2]
[400219225,1767203252881,-500.0,0.00011484,2]
[400219226,1767203252904,-500.0,0.00011484,2]
[400219227,1767203252925,-500.0,0.00011484,2]
[400219228,1767203252946,-500.0,0.00011484,2]
[400219229,1767203252968,-500.0,0.00011484,2]
[400219230,1767203252988,-500.0,0.00011484,2]
[400219231,1767203253009,-500.0,0.00011484,2]
[400219232,1767203253030,-500.0,0.00011484,2]
[400219233,1767203253052,-206.94239819,0.00011484,2]
[400219234,1767203253073,-500.0,0.00011484,2]
[400219235,1767203253095,-500.0,0.00011484,2]
[400219236,1767203253117,-500.0,0.00011484,2]
[400219237,1767203253138,-3071.34505207,0.00011484,2]
[400219238,1767203253159,-384.9954893,0.00011484,2]
[400219239,1767203253179,-3071.34505207,0.00011484,2]
[400219240,1767203253204,-20587.69916631,0.00011485,2]
[400219334,1767203432654,-200.0,0.00011103,2]
[400219335,1767203432664,-200.0,0.00011203,3]
[400219336,1767203432674,-151.0,0.000115,2]
[400219337,1767203432683,-582.0,0.000115,2]
[400219338,1767203432693,-604.72,0.00012329,2]
[400219339,1767203432702,-391.75,0.00012493,2]
[400219340,1767203432712,-658.06355379,0.00012878,2]
[400219341,1767203432721,-358.54992286,0.00013031,2]
[400219342,1767203432731,-293.0,0.00013272,2]
[400219343,1767203432740,-500.0,0.00013273,2]
[400219344,1767203432749,-497.40473471,0.00013273,2]
[400219345,1767203432759,-500.0,0.00013273,2]
[400219346,1767203432769,-500.0,0.00013273,2]
[400219347,1767203432778,-500.0,0.00013273,2]
[400219348,1767203432788,-500.0,0.00013273,2]
[400219349,1767203432797,-500.0,0.00013273,2]
[400219350,1767203432807,-4026.40212464,0.00013273,2]
[400219351,1767203432920,-2704.21360694,0.00013273,2]
[400219352,1767203432945,-437.8,0.00013273,2]
[400219353,1767203432956,-489.0,0.00013273,2]
[400219378,1767203438252,-3385.62481473,0.00013273,2]
[400219380,1767203438263,-35984.98984611,0.00013273,2]
[400219381,1767203438273,-658.06355379,0.00013597,2]
[400219382,1767203438283,-783.5,0.00013628,2]
[400219383,1767203438292,-300.0,0.00013673,2]
[400219384,1767203438301,-500.0,0.00013698,2]
[400219385,1767203438311,-15490.5579877,0.00013699,2]
[400219386,1767203438320,-1022.564735,0.00013699,2]
[400219387,1767203438330,-1000.0,0.00013699,2]
[400219388,1767203438340,-500.0,0.00013699,2]
[400219389,1767203438349,-358.99360694,0.00013821,2]
[400219390,1767203438359,-1000.0,0.00013821,2]
[400219391,1767203438369,-500.0,0.00013821,2]
[400219392,1767203438378,-306.11286536,0.00014247,2]
[400219393,1767203438387,-658.06355379,0.00014316,2]
[400219394,1767203438397,-1500.0,0.00014368,2]
[400219395,1767203438406,-250.0,0.00014671,2]
[400219398,1767203438555,-1175.25,0.00014764,2]
[400219399,1767203438566,-500.0,0.0001488,2]
[400219400,1767203438576,-500.0,0.0001488,2]
[400219401,1767203438586,-190.80386513,0.0001488,2]
[400219402,1767203438596,-500.0,0.0001488,2]
[400219403,1767203438606,-398.32280838,0.0001488,2]
[400219404,1767203438616,-500.0,0.0001488,2]
[400219405,1767203438626,-500.0,0.0001488,2]
[400219406,1767203438635,-500.0,0.0001488,2]
[400219407,1767203438646,-500.0,0.0001488,2]
[400219408,1767203438656,-500.0,0.0001488,2]
[400219409,1767203438665,-500.0,0.0001488,2]
[400219410,1767203438675,-500.0,0.0001488,2]
[400219411,1767203438685,-500.0,0.0001488,2]
[400219412,1767203438694,-500.0,0.0001488,2]
[400219413,1767203438704,-500.0,0.0001488,2]
[400219414,1767203438714,-500.0,0.0001488,2]
[400219415,1767203438723,-500.0,0.0001488,2]
[400219416,1767203438732,-377.60834742,0.0001488,2]
[400219417,1767203438742,-2000.0,0.00014916,2]
[400219418,1767203438751,-413.24397889,0.00015031,2]
[400219419,1767203438761,-658.06355379,0.00015035,2]
[400219420,1767203438770,-2500.0,0.00015464,2]
[400219421,1767203438779,-658.72161735,0.00015753,2]
[400219422,1767203438789,-1567.01,0.000159,2]
[400219423,1767203438798,-3000.0,0.00016012,2]
[400219424,1767203438807,-3500.0,0.0001656,2]
[400219425,1767203438816,-467.93803492,0.00017031,2]
[400219426,1767203438826,-1958.76,0.00017035,2]
[400219427,1767203438835,-4000.0,0.00017108,2]
[400219428,1767203438845,-2942.9097946,0.00017557,2]
[400219429,1767203438855,-2000.0,0.00017656,2]
[400219430,1767203438876,-1041.66666667,0.00017835,2]
[400219431,1767203438888,-2350.51,0.00018171,2]
[400219432,1767203438899,-522.63209095,0.00019031,2]
[400219433,1767203438909,-2742.26,0.00019307,2]
[400219434,1767203438922,-160.6,0.000196,2]
[400219435,1767203438932,-165.71,0.000196,2]
[400219436,1767203438942,-1022.564735,0.00020187,2]
[400219437,1767203438954,-3134.01,0.00020442,2]
[400219438,1767203438963,-577.32614698,0.00021031,2]
[400219439,1767203438973,-168.0,0.00021453,2]
[400219440,1767203438983,-3525.76,0.00021578,2]
[400219441,1767203438993,-168.0,0.00021852,2]
[400219442,1767203439003,-260.08767073,0.00021917,2]
[400219443,1767203439013,-1340.37179282,0.00021917,2]
[400219444,1767203439023,-1186.49,0.00021917,2]
[400219445,1767203439033,-500.0,0.00021917,2]
[400219446,1767203439043,-500.0,0.00021917,2]
[400219447,1767203439053,-500.0,0.00021917,2]
[400219448,1767203439062,-500.0,0.00021917,2]
[400219449,1767203439071,-500.0,0.00021917,2]
[400219450,1767203439081,-1106.98,0.00021917,2]
[400219451,1767203439091,-610.26,0.00021917,2]
[400219452,1767203439101,-500.0,0.00021917,2]
[400219453,1767203439111,-504.41364337,0.00021917,2]
[400219454,1767203439121,-843.17,0.00021917,2]
[400219455,1767203439131,-500.0,0.00021917,2]
[400219456,1767203439140,-2796.18,0.00021917,2]
[400219457,1767203439150,-3995.07,0.00021917,2]
[400219458,1767203439159,-447.91539096,0.00021917,2]
[400219459,1767203439169,-374.71260428,0.00021917,2]
[400219460,1767203439179,-874.95,0.00021917,2]
[400219461,1767203439188,-9696.43,0.00021917,2]
[400219462,1767203439198,-500.0,0.00021917,2]
[400219463,1767203439207,-500.0,0.00021917,2]
[400219464,1767203439217,-2098.98,0.00021917,2]
[400219465,1767203439226,-337.5324406,0.00021917,2]
[400219466,1767203439236,-500.0,0.00021917,2]
[400219467,1767203439245,-500.0,0.00021917,2]
[400219468,1767203439255,-500.0,0.00021917,2]
[400219469,1767203439265,-500.0,0.00021917,2]
[400219470,1767203439275,-500.0,0.00021917,2]
[400219471,1767203439284,-500.0,0.00021917,2]
[400219472,1767203439294,-500.0,0.00021917,2]
[400219473,1767203439303,-500.0,0.00021917,2]
[400219474,1767203439312,-500.0,0.00021917,2]
[400219475,1767203439322,-500.0,0.00021917,2]
[400219476,1767203439331,-275.96070951,0.00021918,2]
[400219477,1767203439342,-168.0,0.00021935,2]
[400219478,1767203439352,-100000.0,0.0002199,2]
[400219479,1767203439361,-168.0,0.00021994,2]
[400219480,1767203439371,-204.2,0.00022,2]
[400219481,1767203439381,-156.46,0.00022,7]
[400219482,1767203439391,-168.0,0.00022041,2]
[400219483,1767203439401,-168.0,0.00022148,2]
[400219484,1767203439411,-1340.37179282,0.00022191,2]
[400219485,1767203439421,-1186.49,0.00022191,2]
[400219486,1767203439430,-369.26572285,0.00022191,2]
[400219487,1767203439440,-500.0,0.00022191,2]
[400219488,1767203439450,-568.76784281,0.00022191,2]
[400219489,1767203439459,-500.0,0.00022191,2]
[400219490,1767203439469,-1106.98,0.00022191,2]
[400219491,1767203439480,-610.26,0.00022191,2]
[400219492,1767203439490,-501.92749062,0.00022191,2]
[400219493,1767203439500,-843.17,0.00022191,2]
[400219494,1767203439510,-500.0,0.00022191,2]
[400219495,1767203439520,-2796.18,0.00022191,2]
[400219496,1767203439530,-3995.07,0.00022191,2]
[400219497,1767203439539,-874.95,0.00022191,2]
[400219498,1767203439549,-9696.43,0.00022191,2]
[400219499,1767203439559,-500.0,0.00022191,2]
[400219500,1767203439568,-500.0,0.00022191,2]
[400219501,1767203439579,-2098.98,0.00022191,2]
[400219502,1767203439589,-500.0,0.00022191,2]
[400219503,1767203439599,-500.0,0.00022191,2]
[400219504,1767203439609,-500.0,0.00022191,2]
[400219505,1767203439620,-500.0,0.00022191,2]
[400219506,1767203439630,-500.0,0.00022191,2]
[400219507,1767203439640,-501.951359,0.00022191,2]
[400219508,1767203439653,-500.0,0.00022191,2]
[400219509,1767203439663,-168.0,0.00022196,2]
[400219510,1767203439673,-928.65,0.000222,14]
[400219511,1767203439683,-168.0,0.00022241,2]
[400219512,1767203439692,-168.0,0.00022461,2]
[400219513,1767203439702,-1340.37179282,0.00022465,2]
[400219514,1767203439711,-1186.49,0.00022465,2]
[400219515,1767203439721,-500.0,0.00022465,2]
[400219516,1767203439731,-500.0,0.00022465,2]
[400219517,1767203439741,-1106.98,0.00022465,2]
[400219518,1767203439751,-610.26,0.00022465,2]
[400219519,1767203439761,-843.17,0.00022465,2]
[400219520,1767203439771,-500.0,0.00022465,2]
[400219521,1767203439780,-2796.18,0.00022465,2]
[400219522,1767203439790,-3995.07,0.00022465,2]
[400219523,1767203439800,-874.95,0.00022465,2]
[400219524,1767203439810,-9696.43,0.00022465,2]
[400219525,1767203439820,-500.0,0.00022465,2]
[400219526,1767203439829,-500.0,0.00022465,2]
[400219527,1767203439839,-2098.98,0.00022465,2]
[400219528,1767203439849,-500.0,0.00022465,2]
[400219529,1767203439858,-465.09067796,0.00022465,2]
[400219530,1767203439868,-500.0,0.00022465,2]
[400219531,1767203439882,-500.0,0.00022465,2]
[400219532,1767203439891,-500.0,0.00022465,2]
[400219533,1767203439901,-500.0,0.00022465,2]
[400219534,1767203439911,-151.0,0.00022533,2]
[400219535,1767203439921,-168.0,0.00022652,2]
[400219536,1767203439930,-3917.52,0.00022714,2]
[400219537,1767203439940,-1340.37179282,0.00022739,2]
[400219538,1767203439950,-1186.49,0.00022739,2]
[400219539,1767203439960,-500.0,0.00022739,2]
[400219540,1767203439969,-500.0,0.00022739,2]
[400219541,1767203439979,-1106.98,0.00022739,2]
[400219543,1767203439988,-610.26,0.00022739,2]
[400219545,1767203439998,-843.17,0.00022739,2]
[400219546,1767203440008,-500.0,0.00022739,2]
[400219547,1767203440018,-2796.18,0.00022739,2]
[400219548,1767203440028,-3995.07,0.00022739,2]
[400219549,1767203440037,-874.95,0.00022739,2]
[400219550,1767203440047,-9696.43,0.00022739,2]
[400219551,1767203440057,-500.0,0.00022739,2]
[400219552,1767203440067,-500.0,0.00022739,2]
[400219553,1767203440076,-2098.98,0.00022739,2]
[400219554,1767203440085,-500.0,0.00022739,2]
[400219555,1767203440095,-500.0,0.00022739,2]
[400219556,1767203440105,-500.0,0.00022739,2]
[400219557,1767203440114,-500.0,0.00022739,2]
[400219558,1767203440124,-500.0,0.00022739,2]
[400219559,1767203440133,-873665.76355811,0.0002277,2]
[400219560,1767203440142,-1340.37179282,0.00023013,2]
[400219562,1767203440152,-1186.49,0.00023013,2]
[400219564,1767203440161,-500.0,0.00023013,2]
[400219566,1767203440171,-500.0,0.00023013,2]
[400219568,1767203440180,-1106.98,0.00023013,2]
[400219570,1767203440189,-610.26,0.00023013,2]
[400219572,1767203440199,-843.17,0.00023013,2]
[400219574,1767203440208,-500.0,0.00023013,2]
[400219575,1767203440218,-2796.18,0.00023013,2]
[400219577,1767203440227,-3995.07,0.00023013,2]
[400219579,1767203440237,-874.95,0.00023013,2]
[400219581,1767203440246,-9696.43,0.00023013,2]
[400219583,1767203440255,-500.0,0.00023013,2]
[400219585,1767203440266,-500.0,0.00023013,2]
[400219587,1767203440275,-2098.98,0.00023013,2]
[400219589,1767203440285,-500.0,0.00023013,2]
[400219591,1767203440294,-500.0,0.00023013,2]
[400219593,1767203440303,-500.0,0.00023013,2]
[400219595,1767203440313,-500.0,0.00023013,2]
[400219597,1767203440322,-500.0,0.00023013,2]
[400219599,1767203440332,-168.0,0.00023018,2]
[400219601,1767203440341,-632.02020301,0.00023031,2]
[400219603,1767203440351,-670.33,0.000231,7]
[400219605,1767203440361,-168.0,0.00023128,2]
[400219607,1767203440374,-1340.37179282,0.00023287,2]
[400219609,1767203440384,-1186.49,0.00023287,2]
[400219611,1767203440393,-500.0,0.00023287,2]
[400219613,1767203440404,-500.0,0.00023287,2]
[400219615,1767203440415,-1106.98,0.00023287,2]
[400219616,1767203440425,-610.26,0.00023287,2]
[400219619,1767203440436,-843.17,0.00023287,2]
[400219620,1767203440446,-500.0,0.00023287,2]
[400219623,1767203440456,-2796.18,0.00023287,2]
[400219624,1767203440466,-3995.07,0.00023287,2]
[400219627,1767203440476,-874.95,0.00023287,2]
[400219629,1767203440486,-9696.43,0.00023287,2]
[400219631,1767203440497,-500.0,0.00023287,2]
[400219632,1767203440507,-500.0,0.00023287,2]
[400219634,1767203440517,-2098.98,0.00023287,2]
[400219636,1767203440526,-500.0,0.00023287,2]
[400219638,1767203440535,-500.0,0.00023287,2]
[400219640,1767203440545,-500.0,0.00023287,2]
[400219642,1767203440555,-500.0,0.00023287,2]
[400219644,1767203440565,-500.0,0.00023287,2]
[400219645,1767203440575,-168.0,0.00023386,2]
[400219647,1767203440584,-168.0,0.00023415,2]
[400219649,1767203440595,-168.0,0.00023517,2]
[400219651,1767203440605,-168.0,0.00023547,2]
[400219653,1767203440615,-1340.37179282,0.00023561,2]
[400219655,1767203440624,-1186.49,0.00023561,2]
[400219657,1767203440633,-500.0,0.00023561,2]
[400219659,1767203440643,-500.0,0.00023561,2]
[400219661,1767203440653,-1106.98,0.00023561,2]
[400219663,1767203440663,-610.26,0.00023561,2]
[400219665,1767203440673,-843.17,0.00023561,2]
[400219667,1767203440683,-500.0,0.00023561,2]
[400219669,1767203440693,-2796.18,0.00023561,2]
[400219671,1767203440703,-3995.07,0.00023561,2]
[400219673,1767203440713,-874.95,0.00023561,2]
[400219675,1767203440723,-9696.43,0.00023561,2]
[400219677,1767203440732,-286.39883318,0.00023561,2]
[400219679,1767203440742,-500.0,0.00023561,2]
[400219681,1767203440751,-2098.98,0.00023561,2]
[400219682,1767203440761,-500.0,0.00023561,2]
[400219684,1767203440770,-500.0,0.00023561,2]
[400219686,1767203440780,-500.0,0.00023561,2]
[400219688,1767203440789,-500.0,0.00023561,2]
[400219690,1767203440799,-500.0,0.00023561,2]
[400219692,1767203440809,-168.0,0.00023669,2]
[400219694,1767203440819,-168.0,0.00023738,2]
[400219696,1767203440829,-928.65,0.000238,14]
[400219698,1767203440839,-1340.37179282,0.00023835,2]
[400219699,1767203440848,-1186.49,0.00023835,2]
[400219700,1767203440857,-200.90977335,0.00023835,2]
[400219701,1767203440867,-500.0,0.00023835,2]
[400219702,1767203440880,-500.0,0.00023835,2]
[400219703,1767203440889,-1106.98,0.00023835,2]
[400219704,1767203440899,-610.26,0.00023835,2]
[400219705,1767203440908,-843.17,0.00023835,2]
[400219706,1767203440918,-500.0,0.00023835,2]
[400219707,1767203440928,-2796.18,0.00023835,2]
[400219708,1767203440937,-3995.07,0.00023835,2]
[400219709,1767203440948,-874.95,0.00023835,2]
[400219710,1767203440957,-9696.43,0.00023835,2]
[400219711,1767203440967,-500.0,0.00023835,2]
[400219712,1767203440977,-2098.98,0.00023835,2]
[400219713,1767203440986,-500.0,0.00023835,2]
[400219714,1767203440996,-500.0,0.00023835,2]
[400219715,1767203441006,-500.0,0.00023835,2]
[400219716,1767203441015,-500.0,0.00023835,2]
[400219717,1767203441024,-500.0,0.00023835,2]
[400219718,1767203441034,-705.18345983,0.000239,2]
[400219719,1767203441043,-705.18345977,0.000239,2]
[400219720,1767203441052,-705.18345977,0.000239,2]
[400219721,1767203441062,-705.18345977,0.000241,2]
[400219722,1767203441071,-1692.94318921,0.00024109,2]
[400219723,1767203441081,-1186.49,0.00024109,2]
[400219724,1767203441090,-574.21869989,0.00024109,2]
[400219725,1767203441099,-1106.98,0.00024109,2]
[400219726,1767203441109,-610.26,0.00024109,2]
[400219727,1767203441119,-843.17,0.00024109,2]
[400219728,1767203441128,-500.0,0.00024109,2]
[400219730,1767203441138,-2796.18,0.00024109,2]
[400219732,1767203441147,-3995.07,0.00024109,2]
[400219734,1767203441157,-874.95,0.00024109,2]
[400219736,1767203441166,-9696.43,0.00024109,2]
[400219738,1767203441175,-500.0,0.00024109,2]
[400219740,1767203441184,-2098.98,0.00024109,2]
[400219742,1767203441194,-500.0,0.00024109,2]
[400219744,1767203441204,-631.52,0.00024109,2]
[400219746,1767203441213,-500.0,0.00024109,2]
[400219748,1767203441223,-500.0,0.00024109,2]
[400219750,1767203441232,-500.0,0.00024109,2]
[400219751,1767203441241,-1186.49,0.00024383,2]
[400219753,1767203441250,-1106.98,0.00024383,2]
[400219755,1767203441260,-610.26,0.00024383,2]
[400219757,1767203441269,-843.17,0.00024383,2]
[400219759,1767203441279,-500.0,0.00024383,2]
[400219761,1767203441289,-2796.18,0.00024383,2]
[400219763,1767203441299,-3995.07,0.00024383,2]
[400219765,1767203441309,-874.95,0.00024383,2]
[400219767,1767203441318,-9696.43,0.00024383,2]
[400219769,1767203441327,-500.0,0.00024383,2]
[400219771,1767203441337,-2098.98,0.00024383,2]
[400219773,1767203441347,-500.0,0.00024383,2]
[400219775,1767203441357,-500.0,0.00024383,2]
[400219777,1767203441366,-500.0,0.00024383,2]
[400219779,1767203441375,-500.0,0.00024383,2]
[400219781,1767203441385,-151.0,0.00024392,2]
[400219783,1767203441395,-8718.0,0.000244,2]
[400219785,1767203441404,-1080.36507781,0.00024405,2]
[400219787,1767203441414,-705.18345977,0.00024496,2]
[400219789,1767203441424,-1186.49,0.00024657,2]
[400219791,1767203441433,-1106.98,0.00024657,2]
[400219793,1767203441443,-610.26,0.00024657,2]
[400219795,1767203441452,-843.17,0.00024657,2]
[400219797,1767203441461,-500.0,0.00024657,2]
[400219799,1767203441470,-2796.18,0.00024657,2]
[400219801,1767203441480,-3995.07,0.00024657,2]
[400219803,1767203441489,-874.95,0.00024657,2]
[400219805,1767203441499,-9696.43,0.00024657,2]
[400219807,1767203441508,-565.44225153,0.00024657,2]
[400219809,1767203441517,-2098.98,0.00024657,2]
[400219811,1767203441527,-500.0,0.00024657,2]
[400219813,1767203441536,-517.2474778,0.00024657,2]
[400219815,1767203441546,-500.0,0.00024657,2]
[400219817,1767203441555,-500.0,0.00024657,2]
[400219819,1767203441565,-150.0,0.00024658,2]
[400219821,1767203441574,-150.0,0.00024658,2]
[400219823,1767203441584,-156.46,0.000248,7]
[400219824,1767203441593,-705.18345977,0.00024892,2]
[400219826,1767203441604,-371114.733813,0.000249,2]
[400219828,1767203441615,-1186.49,0.00024931,2]
[400219830,1767203441625,-1106.98,0.00024931,2]
[400219832,1767203441634,-610.26,0.00024931,2]
[400219834,1767203441643,-843.17,0.00024931,2]
[400219836,1767203441653,-500.0,0.00024931,2]
[400219838,1767203441662,-2796.18,0.00024931,2]
[400219840,1767203441674,-3995.07,0.00024931,2]
[400219842,1767203441684,-874.95,0.00024931,2]
[400219844,1767203441693,-9696.43,0.00024931,2]
[400219846,1767203441702,-2098.98,0.00024931,2]
[400219848,1767203441711,-500.0,0.00024931,2]
[400219850,1767203441721,-500.0,0.00024931,2]
[400219865,1767203441856,-203.39114107,0.00024931,2]
[400219867,1767203441866,-686.71425904,0.00025031,2]
[400219869,1767203441879,-1186.49,0.00025205,2]
[400219871,1767203441888,-1106.98,0.00025205,2]
[400219873,1767203441898,-610.26,0.00025205,2]
[400219875,1767203441908,-843.17,0.00025205,2]
[400219877,1767203441917,-500.0,0.00025205,2]
[400219879,1767203441927,-2796.18,0.00025205,2]
[400219881,1767203441935,-3995.07,0.00025205,2]
[400219883,1767203441947,-874.95,0.00025205,2]
[400219885,1767203441956,-9696.43,0.00025205,2]
[400219887,1767203441965,-2098.98,0.00025205,2]
[400219889,1767203441974,-500.0,0.00025205,2]
[400219891,1767203441984,-500.0,0.00025205,2]
[400219893,1767203441994,-151.50509152,0.00025205,2]
[400219895,1767203442003,-705.18345977,0.00025288,2]
[400219897,1767203442012,-1186.49,0.00025479,2]
[400219899,1767203442022,-1106.98,0.00025479,2]
[400219901,1767203442031,-610.26,0.00025479,2]
[400219903,1767203442041,-843.17,0.00025479,2]
[400219904,1767203442050,-500.0,0.00025479,2]
[400219906,1767203442059,-2796.18,0.00025479,2]
[400219908,1767203442068,-3995.07,0.00025479,2]
[400219910,1767203442077,-874.95,0.00025479,2]
[400219912,1767203442086,-9696.43,0.00025479,2]
[400219914,1767203442097,-2098.98,0.00025479,2]
[400219917,1767203442108,-500.0,0.00025479,2]
[400219918,1767203442117,-500.0,0.00025479,2]
[400219920,1767203442126,-705.18345977,0.00025683,2]
[400219922,1767203442135,-1186.49,0.00025753,2]
[400219924,1767203442144,-1106.98,0.00025753,2]
[400219926,1767203442155,-610.26,0.00025753,2]
[400219928,1767203442163,-843.17,0.00025753,2]
[400219930,1767203442173,-192.92,0.00025753,2]
[400219932,1767203442182,-2796.18,0.00025753,2]
[400219934,1767203442191,-3995.07,0.00025753,2]
[400219936,1767203442201,-874.95,0.00025753,2]
[400219938,1767203442210,-9696.43,0.00025753,2]
[400219940,1767203442220,-2098.98,0.00025753,2]
[400219942,1767203442229,-500.0,0.00025753,2]
[400219944,1767203442239,-500.0,0.00025753,2]
[400219946,1767203442248,-287.1810171,0.0002589,18]